[Event "Titled Tuesday Blitz April 19 Early 2022"]
[White "Baker, Chris W"]
[Black "Buchenau, Frank"]
[WhiteFideId "401676"]
[BlackFideId "4604350"]
[WhiteElo "2215"]
[BlackElo "2193"]
[Result "1-0"]
[Round "09"]
[TimeControl "180+1"]
[Date "2022.04.19"]
[WhiteClock "0:00:26"]
[BlackClock "0:00:10"]

1. c4 {[%clk 0:02:55]}  e5 {[%clk 0:02:59]} 2. Nc3 {[%clk 0:02:54]}  Nf6 {[%clk 0:02:59]} 3. Nf3 {[%clk 0:02:53]}  Nc6 {[%clk 0:02:59]} 4. e3 {[%clk 0:02:50]}  Bb4 {[%clk 0:02:58]} 5. Nd5 {[%clk 0:02:46]}  Bc5 {[%clk 0:02:55]} 6. a3 {[%clk 0:02:44]}  d6 {[%clk 0:02:53]} 7. Qc2 {[%clk 0:02:43]}  Bb6 {[%clk 0:02:50]} 8. b4 {[%clk 0:02:42]}  Nxd5 {[%clk 0:02:49]} 9. cxd5 {[%clk 0:02:41]}  Ne7 {[%clk 0:02:49]} 10. Bc4 {[%clk 0:02:38]}  Bf5 {[%clk 0:02:46]} 11. d3 {[%clk 0:02:34]}  Bg4 {[%clk 0:02:45]} 12. Bb2 {[%clk 0:02:31]}  O-O {[%clk 0:02:44]} 13. h3 {[%clk 0:02:27]}  Bxf3 {[%clk 0:02:42]} 14. gxf3 {[%clk 0:02:27]}  f5 {[%clk 0:02:40]} 15. Rg1 {[%clk 0:02:23]}  a5 {[%clk 0:02:39]} 16. f4 {[%clk 0:02:14]}  Ng6 {[%clk 0:02:33]} 17. fxe5 {[%clk 0:02:11]}  Nxe5 {[%clk 0:02:27]} 18. f4 {[%clk 0:02:07]}  Nf3+ {[%clk 0:02:24]} 19. Kf2 {[%clk 0:02:05]}  Nxg1 {[%clk 0:02:20]} 20. Rxg1 {[%clk 0:02:04]}  Rf7 {[%clk 0:02:16]} 21. Qc3 {[%clk 0:01:56]}  Qh4+ {[%clk 0:02:14]} 22. Rg3 {[%clk 0:01:53]}  axb4 {[%clk 0:02:08]} 23. axb4 {[%clk 0:01:51]}  Re8 {[%clk 0:02:07]} 24. Kg2 {[%clk 0:01:48]}  Qh6 {[%clk 0:01:53]} 25. Bc1 {[%clk 0:01:34]}  Qf6 {[%clk 0:01:48]} 26. Qxf6 {[%clk 0:01:31]}  Rxf6 {[%clk 0:01:48]} 27. Kf3 {[%clk 0:01:23]}  Rg6 {[%clk 0:01:45]} 28. Rxg6 {[%clk 0:01:23]}  hxg6 {[%clk 0:01:46]} 29. e4 {[%clk 0:01:18]}  Kf7 {[%clk 0:01:45]} 30. Bb2 {[%clk 0:01:15]}  Rh8 {[%clk 0:01:40]} 31. Kg3 {[%clk 0:01:12]}  Be3 {[%clk 0:01:28]} 32. e5 {[%clk 0:01:06]}  dxe5 {[%clk 0:01:21]} 33. fxe5 {[%clk 0:01:05]}  g5 {[%clk 0:01:17]} 34. e6+ {[%clk 0:01:04]}  Kf8 {[%clk 0:01:17]} 35. Be5 {[%clk 0:00:55]}  Bf4+ {[%clk 0:01:07]} 36. Bxf4 {[%clk 0:00:54]}  gxf4+ {[%clk 0:01:08]} 37. Kxf4 {[%clk 0:00:54]}  g6 {[%clk 0:01:02]} 38. Ke5 {[%clk 0:00:48]}  Ke7 {[%clk 0:01:02]} 39. b5 {[%clk 0:00:44]}  Rxh3 {[%clk 0:01:01]} 40. b6 {[%clk 0:00:43]}  Re3+ {[%clk 0:00:44]} 41. Kf4 {[%clk 0:00:39]}  Re1 {[%clk 0:00:41]} 42. bxc7 {[%clk 0:00:38]}  g5+ {[%clk 0:00:27]} 43. Kxg5 {[%clk 0:00:37]}  Rg1+ {[%clk 0:00:27]} 44. Kxf5 {[%clk 0:00:37]}  Rg8 {[%clk 0:00:24]} 45. Ke5 {[%clk 0:00:34]}  Rg5+ {[%clk 0:00:23]} 46. Kd4 {[%clk 0:00:34]}  Rg8 {[%clk 0:00:17]} 47. Kc5 {[%clk 0:00:34]}  b6+ {[%clk 0:00:15]} 48. Kc6 {[%clk 0:00:32]}  b5 {[%clk 0:00:12]} 49. d6+ {[%clk 0:00:32]}  Kf6 {[%clk 0:00:11]} 50. Bd5 {[%clk 0:00:28]}  b4 {[%clk 0:00:10]} 51. d7 {[%clk 0:00:27]}  b3 {[%clk 0:00:10]} 52. Bxb3 {[%clk 0:00:26]} 1-0


[Site "https://www.chess.com"]

[Event "Titled Tuesday Blitz April 19 Early 2022"]
[White "Balint, Vilmos"]
[Black "Moskvin, Anatoly"]
[WhiteFideId "718050"]
[BlackFideId "24199990"]
[WhiteElo "2059"]
[BlackElo "2079"]
[Result "0-1"]
[Round "09"]
[TimeControl "180+1"]
[Date "2022.04.19"]
[WhiteClock "0:01:19"]
[BlackClock "0:00:05"]

1. Nf3 {[%clk 0:03:00]}  g6 {[%clk 0:02:59]} 2. g3 {[%clk 0:03:01]}  Bg7 {[%clk 0:03:00]} 3. Bg2 {[%clk 0:03:01]}  c5 {[%clk 0:03:00]} 4. d4 {[%clk 0:02:59]}  cxd4 {[%clk 0:03:00]} 5. Nxd4 {[%clk 0:03:00]}  Nc6 {[%clk 0:03:01]} 6. Nxc6 {[%clk 0:03:00]}  bxc6 {[%clk 0:03:00]} 7. c4 {[%clk 0:02:59]}  Rb8 {[%clk 0:03:00]} 8. Nc3 {[%clk 0:02:58]}  Qa5 {[%clk 0:02:57]} 9. Qc2 {[%clk 0:02:54]}  Nh6 {[%clk 0:02:53]} 10. O-O {[%clk 0:02:53]}  O-O {[%clk 0:02:52]} 11. Bxh6 {[%clk 0:02:50]}  Bxh6 {[%clk 0:02:52]} 12. b3 {[%clk 0:02:51]}  Bg7 {[%clk 0:02:48]} 13. Rac1 {[%clk 0:02:51]}  d6 {[%clk 0:02:48]} 14. Bxc6 {[%clk 0:02:48]}  Bxc3 {[%clk 0:02:34]} 15. Qxc3 {[%clk 0:02:47]}  Qxa2 {[%clk 0:02:35]} 16. Ra1 {[%clk 0:02:30]}  Qxb3 {[%clk 0:02:31]} 17. Qxb3 {[%clk 0:02:30]}  Rxb3 {[%clk 0:02:31]} 18. Rxa7 {[%clk 0:02:30]}  Be6 {[%clk 0:02:14]} 19. Rxe7 {[%clk 0:02:21]}  Bxc4 {[%clk 0:02:13]} 20. Rc1 {[%clk 0:02:19]}  Be6 {[%clk 0:02:03]} 21. Bd7 {[%clk 0:02:17]}  Rb7 {[%clk 0:01:35]} 22. Rxe6 {[%clk 0:02:07]}  fxe6 {[%clk 0:01:35]} 23. Bxe6+ {[%clk 0:02:08]}  Kg7 {[%clk 0:01:35]} 24. Rc2 {[%clk 0:01:57]}  Rb5 {[%clk 0:01:24]} 25. e4 {[%clk 0:01:54]}  Rb4 {[%clk 0:01:03]} 26. Bd5 {[%clk 0:01:54]}  Rd4 {[%clk 0:01:03]} 27. Rc7+ {[%clk 0:01:53]}  Kh6 {[%clk 0:01:03]} 28. Rc2 {[%clk 0:01:52]}  Kg5 {[%clk 0:01:02]} 29. f4+ {[%clk 0:01:47]}  Kg4 {[%clk 0:00:59]} 30. Kg2 {[%clk 0:01:41]}  Rb8 {[%clk 0:00:37]} 31. h4 {[%clk 0:01:29]}  Rxd5 {[%clk 0:00:21]} 32. exd5 {[%clk 0:01:28]}  Rb3 {[%clk 0:00:19]} 33. Rc7 {[%clk 0:01:24]}  Rxg3+ {[%clk 0:00:19]} 34. Kf2 {[%clk 0:01:24]}  Rd3 {[%clk 0:00:12]} 35. Rxh7 {[%clk 0:01:21]}  Rxd5 {[%clk 0:00:11]} 36. Rg7 {[%clk 0:01:22]}  Kxf4 {[%clk 0:00:07]} 37. Rxg6 {[%clk 0:01:22]}  Rd2+ {[%clk 0:00:05]} 38. Ke1 {[%clk 0:01:22]}  Rd4 {[%clk 0:00:05]} 39. h5 {[%clk 0:01:21]}  Kf5 {[%clk 0:00:05]} 40. Rg8 {[%clk 0:01:21]}  Rh4 {[%clk 0:00:04]} 41. Rf8+ {[%clk 0:01:20]}  Ke5 {[%clk 0:00:04]} 42. Rh8 {[%clk 0:01:20]}  d5 {[%clk 0:00:04]} 43. Ke2 {[%clk 0:01:20]}  Ke4 {[%clk 0:00:03]} 44. h6 {[%clk 0:01:21]}  Rh2+ {[%clk 0:00:04]} 45. Ke1 {[%clk 0:01:21]}  d4 {[%clk 0:00:04]} 46. h7 {[%clk 0:01:22]}  Kd3 {[%clk 0:00:04]} 47. Kf1 {[%clk 0:01:20]}  Kd2 {[%clk 0:00:02]} 48. Kg1 {[%clk 0:01:18]}  Rh6 {[%clk 0:00:02]} 49. Kg2 {[%clk 0:01:16]}  d3 {[%clk 0:00:03]} 50. Kf3 {[%clk 0:01:17]}  Rh3+ {[%clk 0:00:03]} 51. Kg4 {[%clk 0:01:17]}  Rh1 {[%clk 0:00:03]} 52. Kf3 {[%clk 0:01:17]}  Kd1 {[%clk 0:00:03]} 53. Ke3 {[%clk 0:01:17]}  Rh3+ {[%clk 0:00:03]} 54. Ke4 {[%clk 0:01:17]}  d2 {[%clk 0:00:04]} 55. Kd4 {[%clk 0:01:16]}  Ke1 {[%clk 0:00:03]} 56. Re8+ {[%clk 0:01:16]}  Kf1 {[%clk 0:00:03]} 57. Rf8+ {[%clk 0:01:15]}  Kg1 {[%clk 0:00:03]} 58. Rg8+ {[%clk 0:01:16]}  Kh2 {[%clk 0:00:02]} 59. h8=Q {[%clk 0:01:16]}  d1=Q+ {[%clk 0:00:03]} 60. Kc4 {[%clk 0:01:16]}  Qc1+ {[%clk 0:00:03]} 61. Kd5 {[%clk 0:01:13]}  Rxh8 {[%clk 0:00:04]} 62. Rxh8+ {[%clk 0:01:14]}  Kg3 {[%clk 0:00:04]} 63. Re8 {[%clk 0:01:14]}  Kf4 {[%clk 0:00:05]} 64. Re4+ {[%clk 0:01:14]}  Kf3 {[%clk 0:00:06]} 65. Rc4 {[%clk 0:01:14]}  Qd2+ {[%clk 0:00:06]} 66. Rd4 {[%clk 0:01:15]}  Qa5+ {[%clk 0:00:06]} 67. Kc4 {[%clk 0:01:15]}  Ke3 {[%clk 0:00:07]} 68. Rd5 {[%clk 0:01:16]}  Qa4+ {[%clk 0:00:07]} 69. Kc5 {[%clk 0:01:16]}  Ke4 {[%clk 0:00:07]} 70. Rd6 {[%clk 0:01:16]}  Qa3+ {[%clk 0:00:08]} 71. Kc6 {[%clk 0:01:17]}  Ke5 {[%clk 0:00:08]} 72. Rd5+ {[%clk 0:01:17]}  Ke6 {[%clk 0:00:09]} 73. Rd4 {[%clk 0:01:18]}  Qa6+ {[%clk 0:00:08]} 74. Kc5 {[%clk 0:01:18]}  Qc8+ {[%clk 0:00:06]} 75. Kb4 {[%clk 0:01:18]}  Ke5 {[%clk 0:00:07]} 76. Rc4 {[%clk 0:01:18]}  Qb7+ {[%clk 0:00:07]} 77. Kc3 {[%clk 0:01:19]}  Qb5 {[%clk 0:00:06]} 78. Kd3 {[%clk 0:01:19]}  Kd5 {[%clk 0:00:05]} 0-1


[Site "https://www.chess.com"]

[Event "Titled Tuesday Blitz April 19 Early 2022"]
[White "Belozerov, Andrei"]
[Black "Petrovskyi, Vadym"]
[WhiteFideId "4120213"]
[BlackFideId "14165210"]
[WhiteElo "2320"]
[BlackElo "2400"]
[Result "0-1"]
[Round "09"]
[TimeControl "180+1"]
[Date "2022.04.19"]
[WhiteClock "0:01:48"]
[BlackClock "0:02:07"]

1. e4 {[%clk 0:03:00]}  c5 {[%clk 0:03:00]} 2. Nf3 {[%clk 0:03:01]}  d6 {[%clk 0:03:00]} 3. d4 {[%clk 0:03:02]}  cxd4 {[%clk 0:03:01]} 4. Nxd4 {[%clk 0:03:02]}  Nf6 {[%clk 0:03:00]} 5. Nc3 {[%clk 0:03:02]}  a6 {[%clk 0:03:01]} 6. Be3 {[%clk 0:03:01]}  e6 {[%clk 0:02:59]} 7. f3 {[%clk 0:02:58]}  b5 {[%clk 0:02:58]} 8. Qd2 {[%clk 0:02:56]}  Bb7 {[%clk 0:02:59]} 9. g4 {[%clk 0:02:56]}  Nfd7 {[%clk 0:02:57]} 10. O-O-O {[%clk 0:02:54]}  Nb6 {[%clk 0:02:58]} 11. h4 {[%clk 0:02:50]}  N8d7 {[%clk 0:02:57]} 12. Nb3 {[%clk 0:02:27]}  Rc8 {[%clk 0:02:55]} 13. g5 {[%clk 0:02:24]}  b4 {[%clk 0:02:32]} 14. Nb1 {[%clk 0:02:11]}  d5 {[%clk 0:02:27]} 15. h5 {[%clk 0:02:02]}  Qc7 {[%clk 0:02:16]} 16. Bh3 {[%clk 0:01:50]}  Nc4 {[%clk 0:02:11]} 17. Qd3 {[%clk 0:01:47]}  Nxe3 {[%clk 0:02:10]} 18. Rh2 {[%clk 0:01:48]}  Qxh2 {[%clk 0:02:07]} 0-1


[Site "https://www.chess.com"]

[Event "Titled Tuesday Blitz April 19 Early 2022"]
[White "Brodowski, Piotr"]
[Black "Tsyhanchuk, Stanislav"]
[WhiteFideId "1124480"]
[BlackFideId "13505130"]
[WhiteElo "2422"]
[BlackElo "2078"]
[Result "0-1"]
[Round "09"]
[TimeControl "180+1"]
[Date "2022.04.19"]
[WhiteClock "0:00:15"]
[BlackClock "0:00:18"]

1. e4 {[%clk 0:02:54]}  c5 {[%clk 0:02:59]} 2. Nf3 {[%clk 0:02:54]}  d6 {[%clk 0:02:59]} 3. d4 {[%clk 0:02:54]}  cxd4 {[%clk 0:03:00]} 4. Nxd4 {[%clk 0:02:54]}  Nf6 {[%clk 0:03:00]} 5. Nc3 {[%clk 0:02:54]}  a6 {[%clk 0:03:00]} 6. a3 {[%clk 0:02:55]}  e5 {[%clk 0:03:00]} 7. Nf5 {[%clk 0:02:53]}  Bxf5 {[%clk 0:02:59]} 8. exf5 {[%clk 0:02:47]}  d5 {[%clk 0:02:59]} 9. Bg5 {[%clk 0:02:41]}  d4 {[%clk 0:02:54]} 10. Ne4 {[%clk 0:02:38]}  Qa5+ {[%clk 0:02:51]} 11. b4 {[%clk 0:02:32]}  Qb6 {[%clk 0:02:43]} 12. Bxf6 {[%clk 0:02:31]}  gxf6 {[%clk 0:02:43]} 13. Bd3 {[%clk 0:02:32]}  Nd7 {[%clk 0:02:41]} 14. Qh5 {[%clk 0:02:28]}  a5 {[%clk 0:02:24]} 15. O-O {[%clk 0:02:23]}  Qc7 {[%clk 0:02:12]} 16. bxa5 {[%clk 0:02:13]}  Rxa5 {[%clk 0:02:11]} 17. Rfb1 {[%clk 0:02:12]}  Bxa3 {[%clk 0:01:51]} 18. g3 {[%clk 0:01:22]}  Ke7 {[%clk 0:01:43]} 19. Rb3 {[%clk 0:01:04]}  Rha8 {[%clk 0:01:20]} 20. Qxh7 {[%clk 0:01:04]}  Bd6 {[%clk 0:00:58]} 21. Rab1 {[%clk 0:01:02]}  Ra1 {[%clk 0:00:56]} 22. h4 {[%clk 0:01:02]}  b6 {[%clk 0:00:47]} 23. h5 {[%clk 0:01:02]}  R8a3 {[%clk 0:00:39]} 24. Kh2 {[%clk 0:00:53]}  Rxb1 {[%clk 0:00:35]} 25. Rxb1 {[%clk 0:00:53]}  Nc5 {[%clk 0:00:30]} 26. Nxc5 {[%clk 0:00:52]}  Qxc5 {[%clk 0:00:30]} 27. h6 {[%clk 0:00:48]}  e4 {[%clk 0:00:30]} 28. Bxe4 {[%clk 0:00:46]}  d3 {[%clk 0:00:30]} 29. Qg8 {[%clk 0:00:35]}  Qxf2+ {[%clk 0:00:29]} 30. Bg2 {[%clk 0:00:36]}  dxc2 {[%clk 0:00:26]} 31. Rf1 {[%clk 0:00:21]}  Rxg3 {[%clk 0:00:20]} 32. Qa8 {[%clk 0:00:15]}  Rxg2+ {[%clk 0:00:18]} 33. Kh1 {[%clk 0:00:15]} 0-1


[Site "https://www.chess.com"]

[Event "Titled Tuesday Blitz April 19 Early 2022"]
[White "Costachi, Mihnea"]
[Black "Krsnik Cohar, Ivan Vihor"]
[WhiteFideId "1217518"]
[BlackFideId "14520044"]
[WhiteElo "2476"]
[BlackElo "2414"]
[Result "1-0"]
[Round "09"]
[TimeControl "180+1"]
[Date "2022.04.19"]
[WhiteClock "0:00:22"]
[BlackClock "0:00:19"]

1. d4 {[%clk 0:01:58]}  d5 {[%clk 0:03:00]} 2. c4 {[%clk 0:01:58]}  Bf5 {[%clk 0:03:00]} 3. Nc3 {[%clk 0:01:58]}  e6 {[%clk 0:03:00]} 4. Bf4 {[%clk 0:01:59]}  c6 {[%clk 0:03:00]} 5. e3 {[%clk 0:01:59]}  Qb6 {[%clk 0:03:00]} 6. Qd2 {[%clk 0:01:57]}  Nf6 {[%clk 0:03:00]} 7. Nf3 {[%clk 0:01:58]}  Ne4 {[%clk 0:03:00]} 8. Qc1 {[%clk 0:01:56]}  Qa5 {[%clk 0:02:56]} 9. Nd2 {[%clk 0:01:48]}  Nxc3 {[%clk 0:02:56]} 10. Qxc3 {[%clk 0:01:38]}  Qxc3 {[%clk 0:02:56]} 11. bxc3 {[%clk 0:01:38]}  Ba3 {[%clk 0:02:57]} 12. cxd5 {[%clk 0:01:34]}  exd5 {[%clk 0:02:55]} 13. g4 {[%clk 0:01:29]}  Bg6 {[%clk 0:02:54]} 14. e4 {[%clk 0:01:11]}  Bb2 {[%clk 0:02:44]} 15. Rb1 {[%clk 0:01:11]}  Bxc3 {[%clk 0:02:44]} 16. Rxb7 {[%clk 0:01:11]}  Bxe4 {[%clk 0:02:42]} 17. Rg1 {[%clk 0:00:56]}  O-O {[%clk 0:02:42]} 18. Kd1 {[%clk 0:00:51]}  Bxd4 {[%clk 0:02:39]} 19. Nxe4 {[%clk 0:00:48]}  dxe4 {[%clk 0:02:40]} 20. Bc4 {[%clk 0:00:48]}  a5 {[%clk 0:02:26]} 21. Ke2 {[%clk 0:00:47]}  Na6 {[%clk 0:02:25]} 22. Rd1 {[%clk 0:00:47]}  c5 {[%clk 0:01:46]} 23. a3 {[%clk 0:00:47]}  Nb8 {[%clk 0:01:21]} 24. Rc7 {[%clk 0:00:42]}  Rd8 {[%clk 0:01:14]} 25. Rxf7 {[%clk 0:00:28]}  Kh8 {[%clk 0:01:12]} 26. Bg5 {[%clk 0:00:29]}  Re8 {[%clk 0:00:58]} 27. Bd5 {[%clk 0:00:28]}  Ra6 {[%clk 0:00:59]} 28. Rc7 {[%clk 0:00:23]}  Rd6 {[%clk 0:00:40]} 29. Bf7 {[%clk 0:00:23]}  Rf8 {[%clk 0:00:32]} 30. Be7 {[%clk 0:00:23]}  Rxf7 {[%clk 0:00:19]} 31. Rc8+ {[%clk 0:00:22]} 1-0


[Site "https://www.chess.com"]

[Event "Titled Tuesday Blitz April 19 Early 2022"]
[White "Dahlgren, James Allen"]
[Black "Karavaeva, Olga"]
[WhiteFideId "22256873"]
[BlackFideId "4124111"]
[WhiteElo "2096"]
[BlackElo "2105"]
[Result "0-1"]
[Round "09"]
[TimeControl "180+1"]
[Date "2022.04.19"]
[WhiteClock "0:00:07"]
[BlackClock "0:01:06"]

1. d3 {[%clk 0:03:00]}  d5 {[%clk 0:02:59]} 2. f4 {[%clk 0:03:01]}  d4 {[%clk 0:02:58]} 3. Nf3 {[%clk 0:03:01]}  c5 {[%clk 0:02:58]} 4. g3 {[%clk 0:03:02]}  Nc6 {[%clk 0:02:58]} 5. Bg2 {[%clk 0:03:03]}  Nf6 {[%clk 0:02:58]} 6. Nbd2 {[%clk 0:03:04]}  g6 {[%clk 0:02:58]} 7. O-O {[%clk 0:03:04]}  Bg7 {[%clk 0:02:58]} 8. h3 {[%clk 0:03:05]}  O-O {[%clk 0:02:58]} 9. c4 {[%clk 0:03:05]}  dxc3 {[%clk 0:02:57]} 10. bxc3 {[%clk 0:03:06]}  Qc7 {[%clk 0:02:57]} 11. e4 {[%clk 0:03:05]}  e5 {[%clk 0:02:56]} 12. f5 {[%clk 0:03:02]}  gxf5 {[%clk 0:02:56]} 13. Nh4 {[%clk 0:03:02]}  fxe4 {[%clk 0:02:47]} 14. Nxe4 {[%clk 0:02:58]}  Nxe4 {[%clk 0:02:47]} 15. Bxe4 {[%clk 0:02:54]}  Bxh3 {[%clk 0:02:35]} 16. Qh5 {[%clk 0:02:53]}  f5 {[%clk 0:02:00]} 17. Bd5+ {[%clk 0:02:40]}  Rf7 {[%clk 0:01:59]} 18. Rxf5 {[%clk 0:01:32]}  Bxf5 {[%clk 0:01:54]} 19. Nxf5 {[%clk 0:01:33]}  Rd8 {[%clk 0:01:46]} 20. Bc4 {[%clk 0:01:10]}  Na5 {[%clk 0:01:32]} 21. Bh6 {[%clk 0:00:17]}  Nxc4 {[%clk 0:01:29]} 22. Bxg7 {[%clk 0:00:15]}  Rxg7 {[%clk 0:01:26]} 23. Nxg7 {[%clk 0:00:14]}  Qxg7 {[%clk 0:01:25]} 24. dxc4 {[%clk 0:00:12]}  Qxg3+ {[%clk 0:01:25]} 25. Kh1 {[%clk 0:00:12]}  Kh8 {[%clk 0:01:18]} 26. Rg1 {[%clk 0:00:11]}  Qf4 {[%clk 0:01:17]} 27. Qf7 {[%clk 0:00:07]}  Qh6+ {[%clk 0:01:13]} 28. Kg2 {[%clk 0:00:07]}  Rd2+ {[%clk 0:01:12]} 29. Kf1 {[%clk 0:00:08]}  Qh3+ {[%clk 0:01:06]} 30. Ke1 {[%clk 0:00:08]}  Qe3+ {[%clk 0:01:05]} 31. Kf1 {[%clk 0:00:07]}  Qe2# {[%clk 0:01:06]} 0-1


[Site "https://www.chess.com"]

[Event "Titled Tuesday Blitz April 19 Early 2022"]
[White "Dev, Shah"]
[Black "Lysyj, Igor"]
[WhiteFideId "35019058"]
[BlackFideId "4150120"]
[WhiteElo "2075"]
[BlackElo "2611"]
[Result "1-0"]
[Round "09"]
[TimeControl "180+1"]
[Date "2022.04.19"]
[WhiteClock "0:00:43"]
[BlackClock "0:01:13"]

1. d4 {[%clk 0:03:00]}  Nf6 {[%clk 0:02:59]} 2. c4 {[%clk 0:02:59]}  e6 {[%clk 0:02:59]} 3. g3 {[%clk 0:02:59]}  d5 {[%clk 0:02:55]} 4. Bg2 {[%clk 0:02:59]}  Be7 {[%clk 0:02:55]} 5. Nf3 {[%clk 0:03:00]}  O-O {[%clk 0:02:56]} 6. O-O {[%clk 0:03:01]}  c6 {[%clk 0:02:55]} 7. Nc3 {[%clk 0:03:00]}  a5 {[%clk 0:02:54]} 8. Ne5 {[%clk 0:03:00]}  Nfd7 {[%clk 0:02:48]} 9. f4 {[%clk 0:02:58]}  Nf6 {[%clk 0:02:44]} 10. e3 {[%clk 0:02:55]}  b6 {[%clk 0:02:44]} 11. b3 {[%clk 0:02:51]}  Ba6 {[%clk 0:02:44]} 12. Re1 {[%clk 0:02:41]}  b5 {[%clk 0:02:42]} 13. c5 {[%clk 0:02:39]}  b4 {[%clk 0:02:42]} 14. Na4 {[%clk 0:02:37]}  Ne4 {[%clk 0:02:37]} 15. Nb6 {[%clk 0:02:34]}  Ra7 {[%clk 0:02:37]} 16. Bxe4 {[%clk 0:02:33]}  dxe4 {[%clk 0:02:37]} 17. Qc2 {[%clk 0:02:33]}  f6 {[%clk 0:02:33]} 18. Nec4 {[%clk 0:02:32]}  Bxc4 {[%clk 0:02:23]} 19. Qxc4 {[%clk 0:02:29]}  f5 {[%clk 0:02:09]} 20. Qxe6+ {[%clk 0:02:28]}  Kh8 {[%clk 0:02:09]} 21. Bb2 {[%clk 0:02:27]}  Bf6 {[%clk 0:02:05]} 22. Rad1 {[%clk 0:02:26]}  g6 {[%clk 0:02:03]} 23. Ba1 {[%clk 0:02:14]}  Qe8 {[%clk 0:02:03]} 24. Qxe8 {[%clk 0:02:07]}  Rxe8 {[%clk 0:02:03]} 25. Re2 {[%clk 0:01:50]}  Nd7 {[%clk 0:02:01]} 26. Nc4 {[%clk 0:01:50]}  a4 {[%clk 0:01:59]} 27. Nd6 {[%clk 0:01:43]}  Rea8 {[%clk 0:01:56]} 28. Bb2 {[%clk 0:01:35]}  axb3 {[%clk 0:01:53]} 29. axb3 {[%clk 0:01:36]}  Ra2 {[%clk 0:01:53]} 30. Rdd2 {[%clk 0:01:30]}  Kg8 {[%clk 0:01:44]} 31. Kg2 {[%clk 0:01:23]}  Be7 {[%clk 0:01:40]} 32. Nc4 {[%clk 0:01:21]}  Nf6 {[%clk 0:01:40]} 33. Nb6 {[%clk 0:01:20]}  R8a6 {[%clk 0:01:38]} 34. d5 {[%clk 0:01:10]}  Nxd5 {[%clk 0:01:27]} 35. Nxd5 {[%clk 0:01:09]}  cxd5 {[%clk 0:01:28]} 36. Rxd5 {[%clk 0:01:09]}  Rc6 {[%clk 0:01:26]} 37. Rd7 {[%clk 0:00:48]}  Kf8 {[%clk 0:01:24]} 38. Bg7+ {[%clk 0:00:45]}  Kxg7 {[%clk 0:01:13]} 39. Rxa2 {[%clk 0:00:43]} 1-0


[Site "https://www.chess.com"]

[Event "Titled Tuesday Blitz April 19 Early 2022"]
[White "Fernandez Siles, Luis"]
[Black "Czerw, Dawid"]
[WhiteFideId "2209420"]
[BlackFideId "1145746"]
[WhiteElo "2212"]
[BlackElo "2125"]
[Result "1/2-1/2"]
[Round "09"]
[TimeControl "180+1"]
[Date "2022.04.19"]
[WhiteClock "0:00:32"]
[BlackClock "0:00:01"]

1. e4 {[%clk 0:03:00]}  c5 {[%clk 0:02:59]} 2. c3 {[%clk 0:03:00]}  d5 {[%clk 0:02:55]} 3. exd5 {[%clk 0:02:59]}  Qxd5 {[%clk 0:02:56]} 4. d4 {[%clk 0:03:00]}  Nf6 {[%clk 0:02:55]} 5. Nf3 {[%clk 0:02:59]}  e6 {[%clk 0:02:55]} 6. a3 {[%clk 0:02:56]}  Be7 {[%clk 0:02:54]} 7. Be3 {[%clk 0:02:56]}  cxd4 {[%clk 0:02:51]} 8. cxd4 {[%clk 0:02:57]}  O-O {[%clk 0:02:49]} 9. Nc3 {[%clk 0:02:57]}  Qd6 {[%clk 0:02:47]} 10. Bd3 {[%clk 0:02:56]}  Nc6 {[%clk 0:02:47]} 11. O-O {[%clk 0:02:55]}  b6 {[%clk 0:02:48]} 12. Qe2 {[%clk 0:02:50]}  Bb7 {[%clk 0:02:47]} 13. Rad1 {[%clk 0:02:50]}  Rac8 {[%clk 0:02:45]} 14. Rfe1 {[%clk 0:02:50]}  Rfd8 {[%clk 0:02:38]} 15. Bb1 {[%clk 0:02:50]}  Bf8 {[%clk 0:02:25]} 16. Bg5 {[%clk 0:02:48]}  h6 {[%clk 0:02:20]} 17. Bxf6 {[%clk 0:02:45]}  gxf6 {[%clk 0:02:21]} 18. Qe4 {[%clk 0:02:35]}  f5 {[%clk 0:02:15]} 19. Qh4 {[%clk 0:02:35]}  Ne7 {[%clk 0:02:07]} 20. Ne5 {[%clk 0:02:26]}  Bg7 {[%clk 0:01:59]} 21. Qh5 {[%clk 0:02:14]}  Rf8 {[%clk 0:01:51]} 22. Re3 {[%clk 0:02:04]}  Rxc3 {[%clk 0:00:54]} 23. bxc3 {[%clk 0:01:43]}  Nd5 {[%clk 0:00:53]} 24. Rg3 {[%clk 0:01:37]}  Nf4 {[%clk 0:00:51]} 25. Rxg7+ {[%clk 0:00:59]}  Kxg7 {[%clk 0:00:47]} 26. Qh4 {[%clk 0:00:56]}  Nxg2 {[%clk 0:00:21]} 27. Qg3+ {[%clk 0:00:55]}  Kh7 {[%clk 0:00:22]} 28. Nd3 {[%clk 0:00:40]}  Qc6 {[%clk 0:00:05]} 29. Ne5 {[%clk 0:00:33]}  Qc7 {[%clk 0:00:02]} 30. Nd3 {[%clk 0:00:32]}  Qc6 {[%clk 0:00:02]} 31. Ne5 {[%clk 0:00:32]}  Qc7 {[%clk 0:00:01]} 32. Nd3 {[%clk 0:00:32]}  Qc6 {[%clk 0:00:01]} 1/2-1/2


[Site "https://www.chess.com"]

[Event "Titled Tuesday Blitz April 19 Early 2022"]
[White "Gatterer, Florian"]
[Black "Dauner, Benedikt"]
[WhiteFideId "811688"]
[BlackFideId "16225899"]
[WhiteElo "2218"]
[BlackElo "2230"]
[Result "0-1"]
[Round "09"]
[TimeControl "180+1"]
[Date "2022.04.19"]
[WhiteClock "0:01:52"]
[BlackClock "0:00:56"]

1. f4 {[%clk 0:03:00]}  e5 {[%clk 0:01:48]} 2. fxe5 {[%clk 0:03:01]}  d6 {[%clk 0:01:49]} 3. exd6 {[%clk 0:03:00]}  Bxd6 {[%clk 0:01:50]} 4. Nf3 {[%clk 0:02:59]}  Nf6 {[%clk 0:01:50]} 5. d4 {[%clk 0:02:58]}  Ng4 {[%clk 0:01:49]} 6. g3 {[%clk 0:02:43]}  h5 {[%clk 0:01:44]} 7. Bg5 {[%clk 0:02:40]}  f6 {[%clk 0:01:41]} 8. Bf4 {[%clk 0:02:38]}  h4 {[%clk 0:01:35]} 9. Bg2 {[%clk 0:02:29]}  Bxf4 {[%clk 0:01:30]} 10. gxf4 {[%clk 0:02:25]}  Ne3 {[%clk 0:01:30]} 11. Qd2 {[%clk 0:02:19]}  Nxg2+ {[%clk 0:01:29]} 12. Kf2 {[%clk 0:02:18]}  h3 {[%clk 0:01:28]} 13. Nc3 {[%clk 0:02:15]}  Nc6 {[%clk 0:01:25]} 14. e4 {[%clk 0:02:14]}  Bg4 {[%clk 0:01:23]} 15. d5 {[%clk 0:02:14]}  Bxf3 {[%clk 0:01:19]} 16. Kxf3 {[%clk 0:02:12]}  Qd7 {[%clk 0:01:08]} 17. Qf2 {[%clk 0:02:01]}  Rh4 {[%clk 0:00:59]} 18. Ne2 {[%clk 0:01:52]}  Qg4# {[%clk 0:00:56]} 0-1


[Site "https://www.chess.com"]